fUST/lending_fUST_20251111
["ID","MTS","AMOUNT","RATE_DAILY","PERIOD"]
[393564184,1762801847863,-2856.0,0.00024923,2]
[393564186,1762801847871,-500.0,0.00024968,2]
[393564188,1762801847881,-1500.0,0.00024968,2]
[393564190,1762801847891,-1500.0,0.00024968,2]
[393564192,1762801847900,-1073.58004219,0.00024968,2]
[393564194,1762801847910,-1500.0,0.00024968,2]
[393564196,1762801847919,-500.0,0.00024968,2]
[393564198,1762801847928,-460.0,0.00025064,2]
[393564200,1762801847938,-224.28292013,0.00025187,2]
[393564202,1762801847947,-274.98,0.000252,7]
[393564204,1762801847958,-1325.6,0.00025233,3]
[393564206,1762801847969,-662.8,0.00025233,3]
[393564208,1762801847979,-158.0,0.00025233,14]
[393564210,1762801847988,-2651.2,0.00025235,3]
[393564212,1762801848000,-5302.4,0.00025245,3]
[393564214,1762801848011,-331.4,0.00025246,3]
[393564216,1762801848020,-192.658308,0.000253,3]
[393564218,1762801848031,-1000.0,0.00025421,2]
[393564220,1762801848041,-500.0,0.00025421,2]
[393564222,1762801848051,-1000.0,0.00025516,2]
[393564224,1762801848060,-500.0,0.00025516,2]
[393564226,1762801848069,-560.0,0.00025612,2]
[393564228,1762801848078,-1368.83935688,0.00025626,2]
[393564230,1762801848087,-4410.0,0.00025799,2]
[393564232,1762801848096,-192.658308,0.00026014,3]
[393564234,1762801848106,-660.0,0.0002616,2]
[393564236,1762801848115,-587.0,0.00026172,2]
[393564238,1762801848125,-179.90185659,0.00026259,7]
[393564240,1762801848134,-1667.51081493,0.00026259,7]
[393564243,1762801848143,-231.0,0.0002627,2]
[393564245,1762801848153,-750.19,0.00026316,2]
[393564247,1762801848163,-11661.6744718,0.00026338,2]
[393564249,1762801848172,-2166.0,0.00026348,2]
[393564251,1762801848181,-985.0,0.00026348,2]
[393564253,1762801848191,-627.0,0.00026348,2]
[393564255,1762801848200,-558.77190949,0.00026389,2]
[393564257,1762801848209,-2502.49,0.000265,7]
[393564259,1762801848219,-398.589069,0.00026676,2]
[393564260,1762801848228,-760.0,0.00026708,2]
[393564263,1762801848238,-192.658308,0.00026727,3]
[393564264,1762801848248,-282.93,0.00026795,2]
[393564266,1762801848257,-712.6471785,0.00026806,2]
[393564268,1762801848267,-316.13907397,0.00026936,2]
[393564270,1762801848276,-2431.05869782,0.00026936,2]
[393564272,1762801848287,-175.0,0.00027,7]
[393564274,1762801848297,-192.658308,0.00027185,2]
[393564276,1762801848306,-224.50720305,0.00027192,2]
[393564278,1762801848315,-274.98,0.000272,7]
[393564280,1762801848325,-860.0,0.00027256,2]
[393564282,1762801848335,-150.0,0.00027397,5]
[393564284,1762801848344,-150.0,0.00027397,5]
[393564286,1762801848354,-4069.64,0.000274,2]
[393564289,1762801848364,-192.658308,0.00027441,3]
[393564291,1762801848373,-159.013079,0.00027479,2]
[393564293,1762801848383,-2947.45,0.0002756,2]
[393564295,1762801848393,-1500.37,0.00027569,2]
[393564297,1762801848403,-500.0,0.00027573,5]
[393564299,1762801848412,-500.0,0.00027573,5]
[393564301,1762801848422,-500.0,0.00027573,5]
[393564303,1762801848431,-500.0,0.00027573,5]
[393564305,1762801848441,-500.0,0.00027573,5]
[393564307,1762801848451,-11661.6744718,0.00027579,2]
[393564309,1762801848461,-2947.45,0.00027589,2]
[393564311,1762801848473,-2947.45,0.00027589,2]
[393564313,1762801848482,-2947.45,0.00027589,2]
[393564315,1762801848492,-2947.45,0.00027589,2]
[393564317,1762801848502,-2947.45,0.00027589,2]
[393564319,1762801848512,-2947.45,0.00027589,2]
[393564320,1762801848522,-2947.45,0.00027589,2]
[393564322,1762801848531,-2947.45,0.00027589,2]
[393564324,1762801848541,-2947.45,0.00027589,2]
[393564326,1762801848551,-2947.65604279,0.00027589,2]
[393564328,1762801848561,-192.658308,0.00027681,7]
[393564330,1762801848571,-960.0,0.00027804,2]
[393564332,1762801848581,-250.0,0.00027945,5]
[393564334,1762801848590,-250.0,0.00027945,5]
[393564336,1762801848600,-1000.0,0.00028121,5]
[393564338,1762801848609,-504.1174244,0.00028121,5]
[393564340,1762801848619,-1147.07109608,0.00028121,5]
[393564342,1762801848629,-504.91348804,0.00028121,5]
[393564345,1762801848639,-1001.10948088,0.00028121,5]
[393564347,1762801848648,-192.658308,0.00028155,3]
[393564349,1762801848657,-2502.49,0.000282,7]
[393564350,1762801848667,-258.0,0.0002827,2]
[393564353,1762801848676,-1060.0,0.00028352,2]
[393564355,1762801848686,-5071.94900133,0.00028388,30]
[393564357,1762801848695,-823.0,0.00028435,2]
[393564359,1762801848704,-500.0,0.00028493,5]
[393564360,1762801848713,-350.0,0.00028493,5]
[393564362,1762801848725,-1500.0,0.00028668,5]
[393564365,1762801848735,-176.0,0.00028767,14]
[393564367,1762801848744,-150.0,0.00028773,5]
[393564369,1762801848754,-12500.0,0.00028785,10]
[393564371,1762801848764,-11661.6744718,0.00028792,2]
[393564373,1762801848773,-12500.0,0.00028794,10]
[393564375,1762801848783,-12500.0,0.00028802,10]
[393564377,1762801848792,-12500.0,0.00028811,10]
[393564379,1762801848802,-11661.6744718,0.00028819,2]
[393564381,1762801848813,-12500.0,0.0002882,10]
[393564383,1762801848822,-2250.56,0.00028822,2]
[393564385,1762801848831,-12500.0,0.00028829,10]
[393564387,1762801848841,-12500.0,0.00028838,10]
[393564389,1762801848850,-12500.0,0.00028846,10]
[393564391,1762801848859,-11661.6744718,0.00028854,2]
[393564393,1762801848868,-12500.0,0.00028855,10]
[393564395,1762801848878,-12500.0,0.00028864,10]
[393564397,1762801848887,-192.658308,0.0002889,7]
[393564399,1762801848896,-1160.0,0.00028899,2]
[393564401,1762801848906,-885.1484739,0.00029,2]
[393564403,1762801848916,-504.79394925,0.00029,7]
[393564405,1762801848925,-276.264999,0.00029,30]
[393564407,1762801848934,-450.0,0.00029041,5]
[393564409,1762801848945,-1000.0,0.00029216,5]
[393564411,1762801848959,-4069.64,0.000293,2]
[393564413,1762801848969,-250.0,0.00029321,5]
[393564415,1762801848979,-2029.74124987,0.0002939,5]
[393564417,1762801848989,-274.98,0.000294,7]
[393564419,1762801848999,-1260.0,0.00029447,2]
[393564421,1762801849010,-550.0,0.00029589,5]
[393564423,1762801849019,-192.658308,0.00029669,2]
[393564425,1762801849029,-179.82017982,0.00029673,4]
[393564427,1762801849041,-350.0,0.00029868,5]
[393564429,1762801849051,-262.51865526,0.00029885,30]
[393564431,1762801849060,-23323.3489436,0.0002999,2]
[393564433,1762801849070,-695.59967131,0.00029995,2]
[393564435,1762801849079,-73442.24744005,0.0003,2]
[393564437,1762801849088,-3507.05571922,0.0003,2]
[393564439,1762801849097,-357.47919406,0.0003,2]
[393564441,1762801849106,-7674.57110809,0.0003,5]
[393564443,1762801849117,-165.46,0.0003,5]
[393564445,1762801849126,-268.52220759,0.0003,2]
[393564447,1762801849135,-900.0,0.0003,2]
[393564449,1762801849144,-300.0,0.0003,10]
[393564451,1762801849154,-3431.90339176,0.0003,5]
[393564453,1762801849163,-3000.75,0.00030075,2]
[393564455,1762801849174,-293.85068442,0.00030088,7]
[393564457,1762801849184,-192.658308,0.00030099,7]
[393564459,1762801849193,-286.60524916,0.0003013,2]
[393564461,1762801849203,-2181.86276353,0.0003013,5]
[393564463,1762801849212,-300.0,0.00030137,5]
[393564465,1762801849225,-650.0,0.00030137,5]
[393564468,1762801849235,-158.0,0.00030164,14]
[393564470,1762801849245,-352.58091887,0.00030193,2]
[393564472,1762801849254,-2502.49,0.000302,7]
[393564474,1762801849265,-673.1942596,0.0003022,2]
[393564476,1762801849275,-285.0,0.0003027,2]
[393564478,1762801849284,-505.85866726,0.00030295,7]
[393564480,1762801849294,-500.0,0.0003032,7]
[393564482,1762801849303,-517.76375783,0.00030342,7]
[393564484,1762801849312,-450.0,0.00030416,5]
[393564486,1762801849323,-203.75994024,0.000305,2]
[393564488,1762801849332,-5000.0,0.00030548,2]
[393564490,1762801849342,-500.0,0.00030614,7]
[393564492,1762801849351,-602.25958883,0.00030685,5]
[393564494,1762801849361,-750.0,0.00030685,5]
[393564496,1762801849373,-11661.6744718,0.0003078,2]
[393564498,1762801849382,-56761.61551949,0.0003079,30]
[393564500,1762801849391,-192.658308,0.000308,30]
[393564502,1762801849401,-11661.6744718,0.0003089,2]
[393564504,1762801849410,-1152.0,0.00030894,2]
[393564506,1762801849421,-4069.64,0.000309,2]
[393564508,1762801849430,-550.0,0.00030964,5]
[393564510,1762801849440,-1000.0,0.00031,31]
[393564512,1762801849450,-3394.90278693,0.0003101,3]
[393564514,1762801849459,-500.0,0.00031019,7]
[393564516,1762801849470,-500.0,0.00031043,7]
[393564517,1762801849480,-28839.0235455,0.0003112,2]
[393564522,1762801849516,-115.17623705,0.0003112,2]
[393565449,1762802831120,-4541.21304563,0.00022196,2]
[393565597,1762803031992,-5000.0,0.0002166,4]
[393565598,1762803032001,-953.86420252,0.00021879,4]
[393565599,1762803032011,-150.0,0.0002199,2]
[393565600,1762803032021,-157.21272932,0.000221,2]
[393565601,1762803032030,-157.21272931,0.00022148,2]
[393565602,1762803032039,-4487.13668617,0.00022195,2]
[393565603,1762803032048,-157.21272931,0.00022196,2]
[393565604,1762803032057,-500.0,0.000222,2]
[393565605,1762803032066,-300.0,0.00022272,2]
[393565606,1762803032075,-300.0,0.00022272,2]
[393565607,1762803032084,-300.0,0.00022272,2]
[393565608,1762803032094,-300.0,0.00022272,2]
[393565609,1762803032103,-1200.0,0.00022272,2]
[393565610,1762803032112,-300.0,0.00022272,2]
[393565611,1762803032122,-424.09061996,0.00022273,2]
[393565612,1762803032140,-631.36083051,0.00022273,2]
[393565613,1762803032151,-500.0,0.00022273,2]
[393565614,1762803032161,-500.0,0.00022273,2]
[393565615,1762803032170,-646.30850869,0.00022273,2]
[393565616,1762803032179,-500.0,0.00022295,2]
[393565617,1762803032190,-500.0,0.00022295,2]
[393565618,1762803032199,-500.0,0.00022295,2]
[393565619,1762803032209,-447.89792421,0.00022295,2]
[393565620,1762803032219,-500.0,0.00022295,2]
[393565621,1762803032229,-437.17081058,0.00022295,2]
[393565622,1762803032239,-500.0,0.00022295,2]
[393565623,1762803032249,-500.0,0.00022295,2]
[393565624,1762803032260,-500.0,0.00022295,2]
[393565625,1762803032271,-500.0,0.00022295,2]
[393565626,1762803032282,-500.0,0.00022295,2]
[393565627,1762803032292,-500.0,0.00022295,2]
[393565628,1762803032302,-150.53222942,0.00022295,2]
[393565629,1762803032315,-161.21550891,0.00022295,2]
[393565630,1762803032328,-500.0,0.00022295,2]
[393565631,1762803032338,-500.0,0.00022295,2]
[393565632,1762803032348,-369.88449109,0.00022295,2]
[393565633,1762803032360,-130.11550891,0.00022295,2]
[393565634,1762803032371,-500.0,0.00022295,2]
[393565635,1762803032380,-333.82222729,0.00022295,2]
[393565636,1762803032392,-166.17777271,0.00022295,2]
[393565637,1762803032401,-500.0,0.00022295,2]
[393565638,1762803032413,-500.0,0.00022295,2]
[393565639,1762803032423,-500.0,0.00022295,2]
[393565640,1762803032432,-500.0,0.00022295,2]
[393565641,1762803032442,-500.0,0.00022295,2]
[393565642,1762803032453,-500.0,0.00022295,2]
[393565643,1762803032463,-500.0,0.00022295,2]
[393565644,1762803032473,-500.0,0.00022295,2]
[393565645,1762803032483,-500.0,0.00022295,2]
[393565646,1762803032493,-500.0,0.00022295,2]
[393565647,1762803032502,-500.0,0.00022295,2]
[393565648,1762803032514,-500.0,0.00022295,2]
[393565649,1762803032524,-500.0,0.00022295,2]
[393565650,1762803032538,-625.0,0.00022295,2]
[393565651,1762803032548,-500.0,0.00022295,2]
[393565652,1762803032558,-266.74028717,0.00022295,2]
[393565653,1762803032568,-337.26191622,0.00022295,2]
[393565654,1762803032578,-500.0,0.00022295,2]
[393565655,1762803032587,-500.0,0.00022295,2]
[393565656,1762803032597,-500.0,0.00022295,2]
[393565657,1762803032607,-500.0,0.00022295,2]
[393565658,1762803032617,-500.0,0.00022295,2]
[393565659,1762803032627,-500.0,0.00022295,2]
[393565660,1762803032636,-500.0,0.00022295,2]
[393565661,1762803032646,-500.0,0.00022295,2]
[393565662,1762803032655,-500.0,0.00022295,2]
[393565663,1762803032665,-500.0,0.00022295,2]
[393565664,1762803032675,-500.0,0.00022295,2]
[393565665,1762803032684,-500.0,0.00022295,2]
[393565666,1762803032694,-500.0,0.00022295,2]
[393565667,1762803032703,-500.0,0.00022295,2]
[393565668,1762803032712,-500.0,0.00022295,2]
[393565669,1762803032722,-500.0,0.00022295,2]
[393565670,1762803032731,-500.0,0.00022295,2]
[393565671,1762803032741,-500.0,0.00022295,2]
[393565672,1762803032750,-500.0,0.00022295,2]
[393565673,1762803032760,-243.0291018,0.00022295,2]
[393565674,1762803032770,-500.0,0.00022295,2]
[393565675,1762803032779,-500.0,0.00022295,2]
[393565676,1762803032789,-500.0,0.00022295,2]
[393565677,1762803032798,-500.0,0.00022295,2]
[393565678,1762803032808,-500.0,0.00022295,2]
[393565679,1762803032818,-500.0,0.00022295,2]
[393565680,1762803032829,-500.0,0.00022295,2]
[393565682,1762803032838,-500.0,0.00022295,2]
[393565683,1762803032848,-500.0,0.00022295,2]
[393565684,1762803032858,-500.0,0.00022295,2]
[393565685,1762803032867,-500.0,0.00022295,2]
[393565686,1762803032876,-500.0,0.00022295,2]
[393565687,1762803032887,-500.0,0.00022295,2]
[393565688,1762803032896,-500.0,0.00022295,2]
[393565689,1762803032906,-500.0,0.00022295,2]
[393565690,1762803032915,-500.0,0.00022295,2]
[393565691,1762803032925,-500.0,0.00022295,2]
[393565692,1762803032934,-500.0,0.00022295,2]
[393565693,1762803032944,-631.25,0.00022295,2]
[393565694,1762803032954,-500.0,0.00022295,2]
[393565695,1762803032964,-500.0,0.00022295,2]
[393565696,1762803032973,-430.0,0.00022295,2]
[393565697,1762803032983,-500.0,0.00022295,2]
[393565698,1762803032992,-500.0,0.00022295,2]
[393565699,1762803033002,-500.0,0.00022295,2]
[393565700,1762803033016,-500.0,0.00022295,2]
[393565701,1762803033026,-1200.0,0.00022295,2]
[393565702,1762803033036,-500.0,0.00022296,2]
[393565703,1762803033046,-223.15692652,0.00022299,2]
[393565704,1762803033055,-2288.28437299,0.000223,2]
[393565721,1762803037843,-40636.99910056,0.00022272,2]
[393565722,1762803037853,-7.04562701,0.000223,2]
[393565723,1762803037863,-2295.33,0.000223,2]
[393565724,1762803037872,-2295.33,0.000223,2]
[393565725,1762803037882,-2295.33,0.000223,2]
[393565726,1762803037891,-2295.33,0.000223,2]
[393565727,1762803037901,-2295.33,0.000223,2]
[393565728,1762803037910,-2295.33,0.000223,2]
[393565729,1762803037919,-2295.33,0.000223,2]
[393565730,1762803037928,-2295.33,0.000223,2]
[393565731,1762803037937,-2295.33,0.000223,2]
[393565732,1762803037946,-2295.33,0.000223,2]
[393565733,1762803037956,-2295.33,0.000223,2]
[393565734,1762803037965,-2295.33,0.000223,2]
[393565735,1762803037974,-2295.33,0.000223,2]
[393565736,1762803037984,-2295.33,0.000223,2]
[393565737,1762803037993,-2295.33,0.000223,2]
[393565738,1762803038003,-2295.33,0.000223,2]
[393565739,1762803038013,-2295.33,0.000223,2]
[393565740,1762803038022,-2295.33,0.000223,2]
[393565741,1762803038033,-2295.33,0.000223,2]
[393565742,1762803038043,-2295.33,0.000223,2]
[393565743,1762803038053,-2295.33,0.000223,2]
[393565744,1762803038063,-2295.33,0.000223,2]
[393565745,1762803038072,-2295.33,0.000223,2]
[393565746,1762803038082,-2295.33,0.000223,2]
[393565747,1762803038092,-2295.33,0.000223,2]
[393565748,1762803038102,-2295.33,0.000223,2]
[393565749,1762803038111,-2295.33,0.000223,2]
[393565750,1762803038121,-2295.33,0.000223,2]
[393565751,1762803038131,-2295.33,0.000223,2]
[393565752,1762803038142,-2295.33,0.000223,2]
[393565753,1762803038152,-2295.33,0.000223,2]
[393565754,1762803038161,-2295.33,0.000223,2]
[393565755,1762803038171,-2295.33,0.000223,2]
[393565756,1762803038181,-2295.33,0.000223,2]
[393565757,1762803038191,-2295.33,0.000223,2]
[393565758,1762803038200,-2295.33,0.000223,2]
[393565759,1762803038210,-2295.33,0.000223,2]
[393565760,1762803038220,-2295.33,0.000223,2]
[393565761,1762803038230,-2295.33,0.000223,2]
[393565762,1762803038239,-2295.33,0.000223,2]
[393565763,1762803038249,-2295.33,0.000223,2]
[393565764,1762803038259,-2295.33,0.000223,2]
[393565765,1762803038269,-2295.33,0.000223,2]
[393565766,1762803038278,-2295.33,0.000223,2]
[393565767,1762803038288,-2295.33,0.000223,2]
[393565768,1762803038297,-2295.33,0.000223,2]
[393565769,1762803038307,-151.0,0.00022387,2]
[393565770,1762803038316,-232.02410139,0.00022387,2]
[393565771,1762803038328,-160.0,0.00022415,2]
[393565772,1762803038338,-438.78397004,0.00022473,2]
[393565773,1762803038348,-1001.943017,0.00022499,2]
[393565774,1762803038483,-163.5492158,0.00022679,2]
[393565775,1762803038495,-1000.0,0.00022821,2]
[393565776,1762803038505,-500.0,0.00023072,2]
[393565777,1762803038516,-227.79055537,0.00023296,2]
[393565778,1762803038527,-1500.0,0.00023368,2]
[393565779,1762803038537,-1000.0,0.00023413,2]
[393565780,1762803038547,-1000.0,0.00023413,2]
[393565781,1762803038557,-1000.0,0.00023413,2]
[393565782,1762803038567,-1000.0,0.00023413,2]
[393565783,1762803038578,-923.09341047,0.00023413,2]
[393565784,1762803038589,-500.0,0.00023916,2]
[393565785,1762803038599,-177.0,0.0002399,2]
[393565786,1762803038608,-4276.45006422,0.00024142,2]
[393565787,1762803038618,-420.0,0.00024195,2]
[393565788,1762803038628,-151.0,0.00024237,2]
[393565789,1762803038638,-151.0,0.00024237,2]
[393565790,1762803038648,-151.0,0.00024292,2]
[393565791,1762803038659,-151.0,0.00024292,2]
[393565792,1762803038669,-151.0,0.00024347,2]
[393565793,1762803038679,-151.0,0.00024347,2]
[393565794,1762803038690,-226.89652407,0.00024401,2]
[393565795,1762803038700,-217.0,0.00024401,2]
[393565796,1762803038710,-169.05292711,0.00024465,2]
[393565797,1762803038719,-164.99,0.000245,7]
[393565798,1762803038730,-214.59986586,0.00024672,7]
[393565799,1762803038740,-3244.39,0.000247,7]
[393565800,1762803038750,-1749.25117077,0.000248,2]
[393565801,1762803038761,-501.76283583,0.00024873,2]
[393565802,1762803038771,-500.0,0.00024873,2]
[393565803,1762803038780,-252.93,0.0002489,10]
[393565804,1762803038790,-12043.84580909,0.000249,2]
[393565805,1762803038803,-51201.15818953,0.000249,2]
[393565806,1762803038818,-2295.33,0.000223,2]
[393565807,1762803038827,-8544.15753096,0.000249,2]
[393565808,1762803038842,-4776.28806406,0.000249,2]
[393565809,1762803038854,-5828.81562136,0.000249,2]
[393565810,1762803038869,-653.5749005,0.000249,2]
[393565811,1762803039534,-504.57922729,0.000249,2]
[393565816,1762803040154,-210.78,0.0002229,10]
[393565817,1762803040164,-2295.2,0.00022296,2]
[393565818,1762803040174,-2295.33,0.000223,2]
[393565819,1762803040184,-23470.82002921,0.000249,2]
[393565820,1762803040193,-10000.0,0.00025,2]
[393565821,1762803040203,-287.49511034,0.00025,14]
[393565822,1762803040212,-4280.07486045,0.00025,2]
[393565922,1762803046672,-500.0,0.00022294,2]
[393565924,1762803046682,-500.0,0.00022294,2]
[393565926,1762803046692,-307.41558746,0.00022294,2]
[393565927,1762803046702,-500.0,0.00022294,2]
[393565928,1762803046711,-338.58441249,0.00022294,2]
[393566033,1762803241159,5000.0,0.00019616,4]
[393566035,1762803450604,304.23220386,0.00037056,60]
[393566036,1762803456332,5000.0,0.0001866,2]
[393566060,1762803672034,5000.0,0.0001866,2]
[393566061,1762803695080,5000.0,0.0001866,2]
[393566062,1762803717330,5000.0,0.0001866,2]
[393566063,1762803740021,5000.0,0.0001866,2]
[393566064,1762803762991,5000.0,0.0001866,2]
[393566065,1762803785221,5000.0,0.0001866,2]
[393566066,1762803807662,5000.0,0.0001866,2]
[393566067,1762803829792,5000.0,0.0001866,2]
[393566069,1762803835532,-150.0,0.00018982,2]
[393566070,1762803835570,-500.0,0.00019172,2]
[393566071,1762803835583,-150.0,0.00019172,2]
[393566072,1762803835598,-550.0,0.00019172,2]
[393566073,1762803835609,-211.21652274,0.00019173,2]
[393566074,1762803835619,-211.09982733,0.00019173,2]
[393566075,1762803835633,-211.09971063,0.00019173,2]
[393566076,1762803835643,-16.5839393,0.00019173,2]
[393566096,1762804037178,169.376198,9.993e-05,2]
[393566101,1762804044822,5000.0,0.0001866,2]
[393566110,1762804154141,-4861.52778253,0.00018886,2]
[393566111,1762804165095,-138.47221747,0.00018886,2]
[393566112,1762804165116,-150.0,0.00019077,2]
[393566113,1762804165135,-207.8101565,0.00019173,2]
[393566114,1762804165153,-2801.9310812,0.00020064,2]
[393566115,1762804165172,-871.04912671,0.00020163,2]
[393566116,1762804165192,-300.0,0.00020353,2]
[393566117,1762804165212,-999.0,0.00020354,2]
[393566118,1762804165231,-1200.0,0.00020881,2]
[393566119,1762804165251,-1243.11632969,0.00020882,2]
[393566146,1762804232229,-5000.0,0.00020673,2]
[393566148,1762804232240,-150.0,0.00020823,2]
[393566150,1762804232252,-500.0,0.00020973,2]
[393566152,1762804232261,-500.0,0.00020973,2]
[393566154,1762804232271,-500.0,0.0002098,2]
[393566156,1762804232280,-500.0,0.0002098,2]
[393566157,1762804232290,-500.0,0.0002098,2]
[393566159,1762804232301,-500.0,0.0002098,2]
[393566162,1762804232312,-500.0,0.0002098,2]
[393566164,1762804232321,-500.0,0.0002098,2]
[393566166,1762804232331,-500.0,0.0002098,2]
[393566168,1762804232341,-500.0,0.0002098,2]
[393566170,1762804232351,-500.0,0.0002098,2]
[393566172,1762804232360,-500.0,0.0002098,2]
[393566174,1762804232369,-604.07061666,0.0002098,2]
[393566176,1762804232378,-500.0,0.0002098,2]
[393566179,1762804232388,-579.93083899,0.0002098,2]
[393566182,1762804232397,-500.0,0.0002098,2]
[393566185,1762804232407,-500.0,0.0002098,2]
[393566188,1762804232417,-500.0,0.0002098,2]
[393566191,1762804232426,-500.0,0.0002098,2]
[393566194,1762804232435,-500.0,0.0002098,2]
[393566195,1762804232444,-500.0,0.0002098,2]
[393566196,1762804232454,-500.0,0.0002098,2]
[393566198,1762804232463,-500.0,0.0002098,2]
[393566200,1762804232472,-500.0,0.0002098,2]
[393566201,1762804232482,-450.0,0.0002098,2]
[393566202,1762804232491,-500.0,0.0002098,2]
[393566203,1762804232503,-500.0,0.0002098,2]
[393566204,1762804232513,-500.0,0.0002098,2]
[393566205,1762804232523,-500.0,0.0002098,2]
[393566206,1762804232533,-500.0,0.0002098,2]
[393566208,1762804232543,-500.0,0.0002098,2]
[393566210,1762804232553,-500.0,0.0002098,2]
[393566212,1762804232563,-500.0,0.0002098,2]
[393566214,1762804232573,-500.0,0.0002098,2]
[393566216,1762804232583,-500.0,0.0002098,2]
[393566218,1762804232593,-500.0,0.0002098,2]
[393566220,1762804232603,-500.0,0.0002098,2]
[393566222,1762804232612,-500.0,0.0002098,2]
[393566223,1762804232621,-500.0,0.0002098,2]
[393566225,1762804232631,-500.0,0.0002098,2]
[393566227,1762804232640,-500.0,0.0002098,2]
[393566229,1762804232649,-300.0,0.0002098,2]
[393566231,1762804232659,-300.0,0.0002098,2]
[393566233,1762804232669,-300.0,0.0002098,2]
[393566235,1762804232678,-300.0,0.0002098,2]
[393566237,1762804232689,-500.0,0.00020981,2]
[393566239,1762804232698,-22908.46621551,0.00020981,2]
[393566241,1762804232712,-11798.6714549,0.00020981,2]
[393566245,1762804232760,-500.0,0.0002098,2]
[393566246,1762804232770,-51.61519368,0.0002098,2]
[393566247,1762804232781,-448.38480632,0.0002098,2]
[393566248,1762804232791,-500.0,0.0002098,2]
[393566249,1762804232801,-204.5822025,0.0002098,2]
[393566265,1762804238068,-295.4177975,0.0002098,2]
[393566266,1762804238078,-500.0,0.0002098,2]
[393566267,1762804238088,-500.0,0.0002098,2]
[393566268,1762804238098,-500.0,0.0002098,2]
[393566269,1762804238108,-500.0,0.0002098,2]
[393566270,1762804238119,-206.28220251,0.0002098,2]
[393566271,1762804238131,-172.0829611,0.0002098,2]
[393566272,1762804238141,-346.13078043,0.0002098,2]
[393566273,1762804238154,-153.86921957,0.0002098,2]
[393566274,1762804238170,-500.0,0.0002098,2]
[393566276,1762804238181,-500.0,0.0002098,2]
[393566277,1762804238191,-405.5,0.0002098,2]
[393566278,1762804238202,-500.0,0.0002098,2]
[393566279,1762804238212,-500.0,0.0002098,2]
[393566280,1762804238222,-500.0,0.0002098,2]
[393566281,1762804238232,-500.0,0.0002098,2]
[393566282,1762804238243,-500.0,0.0002098,2]
[393566283,1762804238255,-15292.86232959,0.00020981,2]
[393566284,1762804238265,-207.8101565,0.00020982,2]
[393566285,1762804238276,-331.22,0.000211,2]
[393566286,1762804238287,-331.22,0.000212,2]
[393566287,1762804238297,-331.22,0.000212,2]
[393566288,1762804238307,-500.0,0.00021255,2]
[393566289,1762804238316,-331.22,0.000213,2]
[393566290,1762804238327,-331.22,0.000213,2]
[393566291,1762804238336,-500.0,0.00021373,2]
[393566292,1762804238346,-500.0,0.00021373,2]
[393566293,1762804238356,-501.72215712,0.00021373,2]
[393566294,1762804238366,-548.61399577,0.00021373,2]
[393566295,1762804238378,-331.22,0.000214,2]
[393566296,1762804238389,-331.22,0.000214,2]
[393566297,1762804238399,-500.0,0.00021473,2]
[393566298,1762804238409,-500.0,0.00021473,2]
[393566299,1762804238419,-555.54208564,0.00021473,2]
[393566300,1762804238430,-331.22,0.000215,2]